[Event "CCT Chessable Masters D-I 2024"]
[Site "Online"]
[Date "2024.02.07"]
[Round "5"]
[White "Carlsen, Magnus"]
[Black "Firouzja, Alireza"]
[Result "1-0"]
[ECO "D00"]
[WhiteElo "2830"]
[BlackElo "2759"]
[Annotator "TA"]
[PlyCount "95"]
[EventDate "2024.01.12"]
[EventType "k.o."]
[EventCountry "NET"]
[SourceTitle "playchess.com"]
[Source "ChessBase"]
[SourceQuality "1"]
[TimeControl "600+2"]

{[%evp 9,95,-6,0,0,0,0,0,0,0,-8,-15,-8,-5,-5,-10,-5,0,0,0,-19,0,0,16,0,-6,-5,21,5,100,110,100,79,146,114,110,119,127,109,137,131,198,193,206,203,202,269,241,259,258,254,424,399,558,565,595,569,503,539,486,175,146,160,132,159,472,475,510,502,520,511,506,488,572,572,556,535,1522,1269,872,616,863,831,833,837,847,843,807,805]} 1. d4 {[%emt 0:00:02]} Nf6 {[%emt 0:00:03]} 2. Bg5 {[%emt 0:00:02]} d5 {[%emt 0:00:15]} 3. e3 {[%emt 0:00:06]} c5 {[%emt 0:00:02]} 4. Nd2 {[%emt 0:00:04]} Nc6 {[%emt 0:00:10]} 5. c3 {[%emt 0:00:03]} cxd4 {[%emt 0:00:14]} 6. exd4 {[%emt 0:00:02]} h6 {[%emt 0:00:05]} 7. Bh4 {[%emt 0:00:01]} Bf5 {[%emt 0:00:04] Dodges Bd3} 8. Ngf3 {[%emt 0:00:02] The position is equal.} e6 {[%emt 0:00:03]} 9. Be2 {[%emt 0:00:11]} Bd6 {[%emt 0:00:16]} 10. O-O {[%emt 0:00:03]} Qc7 {[%emt 0:00:15]} 11. Bg3 {[%emt 0:00:12]} Bxg3 {[%emt 0:00:10]} 12. hxg3 {[%emt 0:00:01]} h5 {[%emt 0:00:12]} 13. Re1 {[%emt 0:00:02]} g6 {[%emt 0:00:10]} 14. Nf1 {[%emt 0:00:06]} Ng4 {[%emt 0:00:15]} 15. Qd2 {[%emt 0:00:26]} O-O-O {[%emt 0:00:25]} 16. b4 {[%emt 0:00:04]} Kb8 {[%emt 0:00:23]} 17. a4 {[%emt 0:00:02]} f6 {[%emt 0:00:16]} 18. Nh4 {[%emt 0:00:13]} g5 {[%emt 0:02:28]} (18... e5 $11) 19. Nxf5 $16 {[%emt 0:00:04]} exf5 {[%emt 0:00:00]} 20. Bd3 {[%emt 0:00:32]} Ne7 {[%emt 0:01:15]} (20... f4 $142) 21. f3 {[%emt 0:02:28]} Nh6 {[%emt 0:00:05]} 22. Re6 $36 {[%emt 0:00:00][%mdl 2048] White is in control.} Rhf8 {[%emt 0:00:41]} 23. Rae1 {[%emt 0:00:03] White is more active.} Nc8 {[%emt 0:00:14]} 24. a5 {[%emt 0:00:04][%cal Ba4a5,Ba5a6][%mdl 32]} Nd6 {[%emt 0:00:24] [#]} (24... Rd6 $16 {was called for.} 25. a6 bxa6 26. Bxa6 Rc6) 25. a6 $1 $18 {[%emt 0:00:04]} b6 {[%emt 0:00:25]} 26. Ne3 {[%emt 0:00:05]} Qd7 {[%emt 0:00:20]} 27. Nxd5 {[%emt 0:00:27]} Ne4 {[%emt 0:00:01]} 28. Rxb6+ {[%emt 0:00:48]} (28. fxe4 Qxe6 29. b5 fxe4 $14) 28... axb6 {[%emt 0:00:01]} 29. fxe4 {[%emt 0:00:00] Threatens to win with b5.} Ka7 $2 {[%emt 0:00:09]} (29... Ng4 {keeps fighting.} 30. c4 (30. Nxb6 Qc7 $11) 30... fxe4) 30. b5 {[%emt 0:00:08] And now c4 would win.} fxe4 {[%emt 0:00:48]} 31. Bxe4 {[%emt 0:00:02]} Qxb5 {[%emt 0:00:06] [#]} 32. c4 {[%emt 0:02:00][%mdl 512]} Qa5 {[%emt 0:00:09] Black is weak on the light squares} 33. Nb4 {[%emt 0:00:13] Intending Nc6+ and mate.} Rc8 {[%emt 0:00:26]} 34. Nc6+ $2 {[%emt 0:00:52]} (34. c5 Rfe8 35. Bf3 Qa4 (35... Rxe1+ $2 36. Qxe1 Rc7 37. Qe8 $18) 36. Nc6+ (36. Bxh5 Rxe1+ 37. Qxe1 Qd7 $16) 36... Kxa6 37. Qd3+ (37. Bxh5 $2 Rxe1+ 38. Qxe1 Rxc6 $19) 37... Kb7) (34. Bd5 {Threatening mate with Re7+.} Rc7 35. Qb2) 34... Rxc6 {[%emt 0:00:01]} 35. Qxa5 {[%emt 0:00:01]} bxa5 {[%emt 0:00:00]} 36. Bxc6 {[%emt 0:00:01][%mdl 4096] Endgame. KRB-KRN} Nf5 $2 {[%emt 0:00:10] [#] Black cannot hold the game after this.} (36... Kxa6 $16 {is a better chance.} 37. c5 Rb8) 37. d5 $1 {[%emt 0:00:09] White is clearly winning.} Kxa6 {[%emt 0:00:03][%cal Oa6b6]} 38. c5 {[%emt 0:00:01]} Rd8 {[%emt 0:00:07][%cal Of5d4]} 39. Re6 {[%emt 0:00:17]} Nd4 {[%emt 0:00:02] aiming for ...Nxc6.} 40. Ba4+ {[%emt 0:00:04]} (40. Rxf6 Nxc6 41. dxc6 Kb5 $19) 40... Ka7 {[%emt 0:00:06]} (40... Nxe6 $2 {is the wrong capture.} 41. dxe6 Rc8 42. e7) 41. Re7+ {[%emt 0:00:06]} ({Inferior is} 41. Rxf6 Rxd5 42. Rf7+ Kb8 $11) 41... Kb8 {[%emt 0:00:01]} 42. d6 {[%emt 0:00:01]} Rc8 {[%emt 0:00:01]} 43. Re4 {[%emt 0:00:12]} Nf5 {[%emt 0:00:03]} 44. Kf2 {[%emt 0:00:08]} Rxc5 {[%emt 0:00:04]} 45. Re8+ {[%emt 0:00:02]} Kb7 {[%emt 0:00:02]} 46. d7 {[%emt 0:00:00]} Rd5 {[%emt 0:00:01]} 47. d8=Q {[%emt 0:00:00]} Rxd8 {[%emt 0:00:00]} 48. Rxd8 {[%emt 0:00:01] Weighted Error Value: White=0.31/Black=0.43.  Loses game:     	---       	Black=1      Mistake:       	White=1     	Black=4      Inaccurate:     	---       	Black=3      OK:         	White=17    	Black=14     Best:        	White=6     	Black=1      Strong:       	White=2     	---        Brilliant:      	White=1     	---} 1-0

[Event "CCT Chessable Masters D-I 2024"]
[Site "Online"]
[Date "2024.02.07"]
[Round "5"]
[White "Firouzja, Alireza"]
[Black "Carlsen, Magnus"]
[Result "0-1"]
[ECO "C50"]
[WhiteElo "2759"]
[BlackElo "2830"]
[Annotator "TA"]
[PlyCount "78"]
[EventDate "2024.01.12"]
[EventType "k.o."]
[EventCountry "NET"]
[SourceTitle "playchess.com"]
[Source "ChessBase"]
[SourceQuality "1"]
[TimeControl "600+2"]

{[%evp 10,78,21,19,30,21,24,17,33,24,48,14,20,27,38,34,35,29,27,11,27,31,40,33,39,40,35,34,47,40,38,25,44,7,29,15,35,0,45,22,75,91,145,149,147,125,136,105,95,98,138,157,141,158,141,130,127,68,65,30,139,0,0,0,0,-340,-336,-627,-625,-574,-559]} 1. e4 {[%emt 0:00:03]} e5 {[%emt 0:00:04]} 2. Nf3 {[%emt 0:00:01]} Nc6 {[%emt 0:00:01]} 3. Bc4 {[%emt 0:00:00]} Nf6 {[%emt 0:00:01]} 4. d3 {[%emt 0:00:01]} Bc5 {[%emt 0:00:07]} 5. Bg5 {[%emt 0:00:01]} h6 {[%emt 0:00:01]} 6. Bh4 {[%emt 0:00:01]} Be7 {[%emt 0:00:00]} 7. Bg3 {[%emt 0:00:03]} d6 {[%emt 0:00:02]} 8. a4 {[%emt 0:00:01]} a5 {[%emt 0:00:01] The position is equal.} 9. O-O {[%emt 0:00:10]} O-O {[%emt 0:00:05]} 10. Re1 {[%emt 0:00:16]} g6 {[%emt 0:00:20]} 11. h3 {[%emt 0:01:09]} Re8 {[%emt 0:00:06]} 12. Nc3 {[%emt 0:00:07]} Bf8 {[%emt 0:00:02]} 13. Bh4 {[%emt 0:01:05]} Bg7 {[%emt 0:00:16]} 14. Nd5 {[%emt 0:00:42]} Be6 {[%emt 0:00:02]} 15. c3 {[%emt 0:00:06]} Bxd5 {[%emt 0:00:15]} 16. Bxd5 {[%emt 0:00:17]} g5 {[%emt 0:00:08]} 17. Bxc6 {[%emt 0:00:01]} bxc6 {[%emt 0:00:00]} 18. Bg3 {[%emt 0:00:01]} Rb8 {[%emt 0:00:01]} 19. Qc2 {[%emt 0:00:05]} Nh5 {[%emt 0:00:05]} 20. Bh2 {[%emt 0:00:06]} Nf4 {[%emt 0:00:12]} 21. d4 {[%emt 0:00:06]} Qf6 {[%emt 0:00:51][%cal Of4h3]} 22. dxe5 {[%emt 0:00:13]} dxe5 {[%emt 0:00:01][%cal Of4h3]} (22... Nxh3+ 23. gxh3 Qxf3 24. Re3 $16 (24. exd6 Qxh3 25. dxc7 Rbc8 $11)) 23. Nd2 {[%emt 0:00:02]} Qe6 {[%emt 0:00:06] Prevents Nc4.} (23... Rxb2 $5 24. Qxb2 Nd3 $11) 24. b3 {[%emt 0:00:11]} Bf8 {[%emt 0:01:18]} (24... g4 $11 {keeps the balance.}) 25. Nc4 $16 {[%emt 0:00:05]} Bc5 {[%emt 0:00:04]} (25... g4 $142) 26. Nxa5 {[%emt 0:00:30]} g4 {[%emt 0:00:03] [#]} 27. h4 {[%emt 0:00:07]} Nh5 {[%emt 0:00:25] And now ...g3 would win.} 28. Kh1 {[%emt 0:00:22]} (28. b4 $6 Bb6 29. Kh1 Bxa5 $14) 28... Qf6 {[%emt 0:00:34][%csl LRf2,LRh4]} 29. Bg3 {[%emt 0:00:02]} Nxg3+ {[%emt 0:00:01]} 30. fxg3 {[%emt 0:00:02] aiming for Qe2.} Qf2 {[%emt 0:00:00]} 31. Qxf2 {[%emt 0:00:30]} Bxf2 {[%emt 0:00:01]} 32. Reb1 {[%emt 0:00:03] Kh2 would now be deadly.} f5 {[%emt 0:00:48][%cal Bf7f5,Bf5e4,Be4e3,Be3e2][%mdl 32]} 33. b4 {[%emt 0:01:38]} (33. exf5 Bxg3 34. b4 (34. Nxc6 Rb6 $11) 34... Rbd8 $11) ({White should try} 33. Nxc6 $16 Rb6 34. Rf1 Bxg3 35. Nb4 fxe4 36. Nd5 Bxh4 37. Nxb6 (37. Nxc7 Rd8 $11) 37... cxb6 38. a5 bxa5 39. Ra4 (39. Rxa5 e3 $14)) 33... Rbd8 $14 {[%emt 0:00:58]} 34. Nxc6 {[%emt 0:00:17]} ({Of course not} 34. exf5 e4 35. Nxc6 Rd3 $11) 34... Rd6 {[%emt 0:00:02]} (34... Rd2 $1 $11) 35. b5 {[%emt 0:00:03]} (35. Rb2 $16 Bxg3 36. b5) 35... fxe4 $11 {[%emt 0:00:01]} 36. Rb4 {[%emt 0:01:21]} e3 {[%emt 0:00:28] Threatens to win with ...e2.} 37. Re4 $2 {[%emt 0:00:25][%mdl 8192]} (37. Rxg4+ $11 Kf7 38. Re4) 37... Rd2 $19 {[%emt 0:00:22]} 38. Rf1 $2 {[%emt 0:00:38] [#]} (38. Rxg4+ Kh8 39. Kh2) 38... Rf8 $1 {[%emt 0:00:15] Strongly threatening ...e2.} (38... e2 $2 39. Rxf2 Rd1+ 40. Kh2 $17) 39. Kh2 {[%emt 0:00:22]} e2 {[%emt 0:00:06] Weighted Error Value: White=0.37/Black=0.14 (very precise) .  Loses game:     	White=1     	---        Mistake:       	White=3     	Black=3      Inaccurate:     	White=4     	Black=2      OK:         	White=9     	Black=13     Best:        	White=2     	Black=2      Strong:       	---       	Black=1} 0-1

[Event "CCT Chessable Masters D-I 2024"]
[Site "Online"]
[Date "2024.02.03"]
[Round "51"]
[White "LyonBeast"]
[Black "Nepomniachtchi, Ian"]
[Result "1-0"]
[ECO "C42"]
[WhiteElo "2876"]
[BlackElo "2769"]
[Annotator "TA"]
[PlyCount "93"]
[EventDate "2024.01.12"]
[EventType "k.o."]
[EventCountry "NET"]
[SourceTitle "playchess.com"]
[Source "ChessBase"]
[SourceQuality "1"]
[TimeControl "600+2"]

{[%evp 9,93,18,26,13,35,10,14,13,20,21,37,19,19,23,35,41,37,41,56,51,45,49,45,47,45,44,41,48,42,34,41,33,44,0,118,108,108,96,113,41,42,41,85,77,71,22,40,10,10,10,41,30,41,22,16,16,15,10,81,81,101,18,15,15,15,15,16,8,826,826,826,774,29967,29970,29972,29973,29981,29982,29988,29974,29974,29975,29975,29976,29984,29984]} 1. e4 {[%emt 0:00:03]} e5 {[%emt 0:00:06]} 2. Nf3 {[%emt 0:00:01]} Nf6 {[%emt 0:00:01]} 3. Nxe5 {[%emt 0:00:24]} d6 {[%emt 0:00:02]} 4. Nf3 {[%emt 0:00:05]} Nxe4 {[%emt 0:00:01]} 5. Bd3 {[%emt 0:00:04]} d5 {[%emt 0:00:02]} 6. Qe2 {[%emt 0:00:36][%cal Ob1c3]} Be7 {[%emt 0:00:02]} 7. Bxe4 {[%emt 0:00:05]} dxe4 {[%emt 0:00:00]} 8. Qxe4 {[%emt 0:00:00] The position is equal.} O-O {[%emt 0:00:01]} 9. O-O {[%emt 0:00:02]} c5 {[%emt 0:00:00]} 10. d4 {[%emt 0:01:09]} cxd4 {[%emt 0:00:34]} 11. Qxd4 {[%emt 0:00:16]} Qxd4 {[%emt 0:00:38]} 12. Nxd4 {[%emt 0:00:02]} Rd8 {[%emt 0:00:02]} 13. Be3 {[%emt 0:00:16]} Bf6 {[%emt 0:00:16]} 14. c3 {[%emt 0:00:01]} Nc6 {[%emt 0:00:07]} 15. Nxc6 {[%emt 0:00:54]} bxc6 {[%emt 0:00:00]} 16. Nd2 {[%emt 0:00:00]} Bf5 {[%emt 0:00:44]} 17. Nb3 {[%emt 0:00:41]} a5 {[%emt 0:00:04]} 18. Bd4 {[%emt 0:00:02]} Be7 {[%emt 0:00:16]} 19. Rfe1 {[%emt 0:00:07]} Be6 {[%emt 0:00:23]} 20. Bc5 {[%emt 0:00:32]} Bf6 {[%emt 0:00:40]} 21. Bd4 {[%emt 0:00:51]} Bxb3 {[%emt 0:00:46]} (21... Be7 $1 $11) 22. Bxf6 $16 {[%emt 0:00:02]} (22. axb3 $6 Bxd4 23. cxd4 Rxd4 $11) 22... gxf6 {[%emt 0:00:00]} 23. axb3 $11 {[%emt 0:00:01][%mdl 4096] Endgame. KRR-KRR} Rd2 {[%emt 0:00:01]} 24. g3 {[%emt 0:00:30]} (24. b4 $16) 24... Rxb2 $14 {[%emt 0:00:04]} 25. Ra3 {[%emt 0:00:00]} Rd8 {[%emt 0:00:52]} 26. Rxa5 {[%emt 0:00:03]} Rxb3 {[%emt 0:00:01]} 27. Re3 {[%emt 0:00:16]} (27. Rc5 $16) 27... Rd5 {[%emt 0:00:07]} 28. Rxd5 {[%emt 0:00:09]} cxd5 {[%emt 0:00:01] KR-KR} 29. Kf1 {[%emt 0:00:01]} Rb2 {[%emt 0:00:06]} 30. Ke1 {[%emt 0:00:11]} Kg7 {[%emt 0:00:12]} 31. Re2 {[%emt 0:00:04]} Rb1+ {[%emt 0:00:40]} 32. Kd2 {[%emt 0:00:02]} h5 {[%emt 0:00:02]} 33. Kc2 {[%emt 0:00:52]} Rf1 {[%emt 0:00:17]} (33... Rh1 $11) 34. Rd2 $16 {[%emt 0:00:10]} h4 {[%emt 0:00:11]} 35. f4 {[%emt 0:00:26]} (35. Rxd5 Rxf2+ 36. Rd2 Rf3 $14) ({White should play} 35. gxh4 $16 {[%cal Oc2d3] Threatens to win with Kd3!} f5 36. Rxd5 Rxf2+ 37. Rd2) 35... hxg3 {[%emt 0:00:20]} 36. hxg3 {[%emt 0:00:00]} (36. Rxd5 $2 {loses.} gxh2 (36... Rxf4 37. hxg3 Rg4 38. Rd3 $11) 37. Rh5 h1=Q $19 (37... h1=R $2 38. Rd5 $19)) 36... Rg1 $1 {[%emt 0:00:01]} 37. Rxd5 {[%emt 0:00:02]} Rxg3 {[%emt 0:00:01]} 38. Kb3 {[%emt 0:00:30] aiming for Kb4.} Kg6 $2 {[%emt 0:00:04][%mdl 8192] [#] This move loses the game for Black.} (38... f5 $11) 39. Kb4 $1 $18 {[%emt 0:00:10] Hoping for c4.} f5 {[%emt 0:00:53]} 40. c4 {[%emt 0:00:07][%cal Bc3c4,Bc4c5,Bc5c6,Bc6c7][%mdl 32] Intending c5 and mate.} Re3 {[%emt 0:00:10]} 41. c5 {[%emt 0:00:12] White mates.} Re4+ {[%emt 0:00:01]} 42. Kb5 {[%emt 0:00:00]} Kf6 {[%emt 0:01:59]} 43. c6 {[%emt 0:00:06]} Ke6 {[%emt 0:00:00]} 44. Rd3 {[%emt 0:00:24]} Re1 {[%emt 0:00:06]} 45. c7 {[%emt 0:00:01]} Rc1 {[%emt 0:00:09]} 46. Kb6 {[%emt 0:00:02]} Rc4 {[%emt 0:00:05]} 47. Rd8 {[%emt 0:00:05] Weighted Error Value: White=0.12 (very precise) /Black=0.25 (precise) .  Loses game:     	---       	Black=1      Mistake:       	White=3     	Black=2      Inaccurate:     	White=2     	Black=2      OK:         	White=11    	Black=10     Best:        	White=3     	Black=4      Strong:       	White=1     	Black=1} 1-0

[Event "CCT Chessable Masters D-I 2024"]
[Site "Online"]
[Date "2024.02.03"]
[Round "51"]
[White "Nepomniachtchi, Ian"]
[Black "LyonBeast"]
[Result "1-0"]
[ECO "B90"]
[WhiteElo "2769"]
[BlackElo "2882"]
[Annotator "TA"]
[PlyCount "71"]
[EventDate "2024.01.12"]
[EventType "k.o."]
[EventCountry "NET"]
[SourceTitle "playchess.com"]
[Source "ChessBase"]
[SourceQuality "1"]
[TimeControl "600+2"]

{[%evp 11,71,1,23,16,24,18,22,29,19,23,22,4,16,10,22,24,16,0,27,26,64,45,111,105,160,162,178,181,196,195,204,179,397,348,345,344,355,348,374,377,469,437,512,438,481,492,490,486,689,562,552,506,495,497,29989,663,29990,29991,29991,29992,29997,-773]} 1. e4 {[%emt 0:00:02]} c5 {[%emt 0:00:03]} 2. Nf3 {[%emt 0:00:02]} d6 {[%emt 0:00:00]} 3. d4 {[%emt 0:00:00]} cxd4 {[%emt 0:00:00]} 4. Nxd4 {[%emt 0:00:00]} Nf6 {[%emt 0:00:01]} 5. Nc3 {[%emt 0:00:01]} a6 {[%emt 0:00:00]} 6. Bd3 {[%emt 0:00:00]} g6 {[%emt 0:00:02]} 7. f3 {[%emt 0:00:02]} Qb6 {[%emt 0:00:03] [#]} 8. a3 $1 {[%emt 0:00:01]} Nc6 {[%emt 0:00:12] [#]} (8... Qxd4 $2 {too greedy.} 9. Bb5+ axb5 10. Qxd4 $18) (8... e5 9. Nb3) 9. Be3 {[%emt 0:00:01] The position is equal.} e5 {[%emt 0:00:06] [#]} 10. Nf5 {[%emt 0:00:01]} Qd8 {[%emt 0:00:01]} 11. Ng3 {[%emt 0:00:01]} Bg7 {[%emt 0:00:17]} 12. h4 {[%emt 0:00:05]} h5 {[%emt 0:00:01]} 13. Bg5 {[%emt 0:00:08]} Be6 {[%emt 0:00:08] Wards off Bc4} 14. Qd2 {[%emt 0:00:02]} Rc8 {[%emt 0:00:33]} 15. O-O-O {[%emt 0:00:54]} Ne7 {[%emt 0:00:07]} 16. Kb1 {[%emt 0:00:28]} Rc6 {[%emt 0:00:21] [#] White now steadily converts the win.} (16... Nh7 $14) 17. Nd5 $1 $16 {[%emt 0:00:17]} Nfg8 {[%emt 0:00:56]} (17... Nexd5 $142 18. exd5 Bxd5) 18. c4 {[%emt 0:00:57] White is much more active. The black rooks are passive.} f6 {[%emt 0:00:04]} 19. Be3 {[%emt 0:00:04]} Nh6 {[%emt 0:00:02]} 20. Ne2 {[%emt 0:00:39][%cal Bg3e2,Be2c3,Bc3d5][%mdl 32]} Nf7 {[%emt 0:00:10]} 21. Nec3 {[%emt 0:00:03]} O-O $2 {[%emt 0:00:09]} (21... f5 {was necessary.} 22. exf5 gxf5) 22. Nxe7+ {[%emt 0:00:16]} Qxe7 {[%emt 0:00:02]} 23. Nd5 {[%emt 0:00:00]} Qd7 {[%emt 0:00:08] [#]} 24. g4 {[%emt 0:00:10][%mdl 512] gxh5 would now be deadly.} hxg4 {[%emt 0:00:04]} (24... Kh7 25. gxh5) 25. fxg4 {[%emt 0:00:01]} Bxg4 {[%emt 0:00:02]} 26. Rdg1 {[%emt 0:00:01] Hoping for Be2.} f5 {[%emt 0:01:50][%cal Bf6f5,Bf5f4][%mdl 32] [#]} 27. h5 $1 {[%emt 0:00:40][%mdl 512]} f4 {[%emt 0:00:51]} 28. hxg6 {[%emt 0:00:15]} Nh6 {[%emt 0:00:07]} 29. Bf2 {[%emt 0:00:01][%cal Be3f2,Bf2h4,Bh4g5][%mdl 32] And now Bh4 would win.} Bf3 {[%emt 0:00:36] [#]} (29... Be6 $142 30. Be2 Nf5 31. exf5 Bxf5+ 32. Ka1 Re8) 30. Bh4 $1 {[%emt 0:00:42]} Bxh1 {[%emt 0:00:06]} 31. Rxh1 {[%emt 0:00:00]} Qg4 {[%emt 0:00:08]} 32. Qh2 {[%emt 0:00:42]} Qf3 {[%emt 0:00:48]} (32... Kh8 $18 33. Be7 Qxg6) 33. Ne7+ {[%emt 0:00:30]} Kh8 {[%emt 0:00:01] [#]} 34. Bg5 $1 {[%emt 0:00:38] White mates.} Qxd3+ {[%emt 0:00:14]} (34... Qxh1+ 35. Qxh1) 35. Ka1 {[%emt 0:00:02]} Qg3 {[%emt 0:00:12]} 36. Qxh6+ {[%emt 0:00:03][%mdl 32768] Weighted Error Value: White=0.16 (very precise) /Black=0.53.  Mistake:       	---       	Black=5      Inaccurate:     	---       	Black=3      OK:         	White=13    	Black=10     Best:        	White=1     	Black=1      Strong:       	White=1     	---       . Loss on time!?} 1-0

[Event "CCT Chessable Masters D-I 2024"]
[Site "Online"]
[Date "2024.02.03"]
[Round "51"]
[White "Firouzja, Alireza"]
[Black "So, Wesley"]
[Result "1/2-1/2"]
[ECO "D37"]
[WhiteElo "2759"]
[BlackElo "2757"]
[Annotator "TA"]
[PlyCount "65"]
[EventDate "2024.01.12"]
[EventType "k.o."]
[EventCountry "NET"]
[SourceTitle "playchess.com"]
[Source "ChessBase"]
[SourceQuality "1"]
[TimeControl "600+2"]

{[%evp 9,65,22,22,22,34,23,24,31,37,26,21,17,29,25,20,25,25,29,22,21,29,21,17,17,20,22,31,25,27,0,0,0,0,0,34,0,0,0,5,0,0,0,0,0,0,0,0,0,7,12,11,10,4,0,0,0,13,0]} 1. d4 {[%emt 0:00:03]} Nf6 {[%emt 0:00:13]} 2. c4 {[%emt 0:00:01]} e6 {[%emt 0:00:02]} 3. Nf3 {[%emt 0:00:01]} d5 {[%emt 0:00:02]} 4. Nc3 {[%emt 0:00:01]} a6 {[%emt 0:00:02]} 5. cxd5 {[%emt 0:00:05]} exd5 {[%emt 0:00:00]} 6. Bg5 {[%emt 0:00:01]} Be6 {[%emt 0:00:01]} 7. e3 {[%emt 0:00:03]} Nbd7 {[%emt 0:00:01]} 8. Bd3 {[%emt 0:00:01] White has an edge.} Bd6 {[%emt 0:00:00]} 9. h3 {[%emt 0:00:05]} c6 {[%emt 0:00:04]} 10. Bf4 {[%emt 0:00:21]} Qc7 {[%emt 0:00:04]} 11. Qd2 {[%emt 0:00:19]} O-O {[%emt 0:00:02]} 12. O-O {[%emt 0:00:02]} Rfe8 {[%emt 0:00:04]} 13. Rfe1 {[%emt 0:00:23]} Nb6 {[%emt 0:00:06]} 14. b3 {[%emt 0:00:57]} g6 {[%emt 0:00:08]} 15. Bxd6 {[%emt 0:00:13]} Qxd6 {[%emt 0:00:02]} 16. Ne5 {[%emt 0:00:00]} Nfd7 {[%emt 0:01:09]} 17. f4 {[%emt 0:00:16]} f6 {[%emt 0:00:06]} 18. Nf3 {[%emt 0:00:05]} Bf7 {[%emt 0:00:40]} 19. e4 {[%emt 0:00:55]} dxe4 {[%emt 0:00:00]} 20. Nxe4 {[%emt 0:00:01]} Qc7 {[%emt 0:00:50]} 21. f5 {[%emt 0:00:27]} Nd5 {[%emt 0:00:05]} 22. fxg6 {[%emt 0:00:21]} hxg6 {[%emt 0:00:21] The position is equal.} 23. Qh6 {[%emt 0:02:10]} Qf4 {[%emt 0:00:08]} 24. Qxf4 {[%emt 0:00:01]} Nxf4 {[%emt 0:00:01]} 25. Bf1 {[%emt 0:00:01]} Bd5 {[%emt 0:00:19]} 26. Nd6 {[%emt 0:00:09]} Rxe1 {[%emt 0:00:01]} 27. Rxe1 {[%emt 0:00:02]} b5 {[%emt 0:00:09]} 28. Re7 {[%emt 0:00:10]} Rd8 {[%emt 0:02:17]} 29. Nb7 {[%emt 0:01:29]} Kf8 $1 {[%emt 0:00:01]} 30. Rh7 {[%emt 0:00:03]} Kg8 $1 {[%emt 0:00:02]} 31. Re7 {[%emt 0:00:11]} Kf8 $1 {[%emt 0:00:01]} 32. Rh7 {[%emt 0:00:00]} Kg8 $1 {[%emt 0:00:00]} 33. Re7 {[%emt 0:00:01] Weighted Error Value: White=0.04 (flawless) /Black=0.05 (flawless) .  Inaccurate:     	White=2     	Black=1      OK:         	White=13    	Black=6      Best:        	---       	Black=2      Strong:       	---       	Black=4} 1/2-1/2